[Event "*** Titled Tuesday Blitz"]
[Site "Chess.com"]
[Date "2021.02.09"]
[Round "3"]
[White "LubovMarkelova"]
[Black "Enriquack"]
[Result "1-0"]
[WhiteElo "2258"]
[BlackElo "2480"]
[TimeControl "180+1"]
[EndTime "10:28:46 PST"]
[Termination "LubovMarkelova won on time"]

1. d4 {[%clk 0:03:00.5]} 1... Nf6 {[%clk 0:02:59.8]} 2. Nf3 {[%clk 0:03:00.1]}
2... g6 {[%clk 0:02:59.7]} 3. c4 {[%clk 0:02:58.9]} 3... c5 {[%clk 0:02:59.7]}
4. d5 {[%clk 0:02:57]} 4... b5 {[%clk 0:02:59.8]} 5. cxb5 {[%clk 0:02:48.7]}
5... a6 {[%clk 0:02:59.5]} 6. Nc3 {[%clk 0:02:43.6]} 6... Bg7 {[%clk 0:02:45.1]}
7. e4 {[%clk 0:02:43.2]} 7... O-O {[%clk 0:02:44.6]} 8. Bg5 {[%clk 0:02:33.1]}
8... d6 {[%clk 0:02:43.8]} 9. a4 {[%clk 0:02:31]} 9... h6 {[%clk 0:02:14]} 10.
Bxf6 {[%clk 0:02:17.2]} 10... Bxf6 {[%clk 0:02:14.9]} 11. Bd3 {[%clk 0:02:12.4]}
11... axb5 {[%clk 0:02:12.4]} 12. Bxb5 {[%clk 0:01:54.7]} 12... Na6 {[%clk
0:02:08.8]} 13. O-O {[%clk 0:01:52.9]} 13... Nb4 {[%clk 0:02:08.9]} 14. Nd2
{[%clk 0:01:50.3]} 14... e6 {[%clk 0:02:00.4]} 15. Nc4 {[%clk 0:01:46.9]} 15...
exd5 {[%clk 0:01:46.4]} 16. Nxd5 {[%clk 0:01:31.5]} 16... Nxd5 {[%clk 0:01:33]}
17. exd5 {[%clk 0:01:27.7]} 17... Ba6 {[%clk 0:01:24.3]} 18. Re1 {[%clk
0:01:14.8]} 18... Qb8 {[%clk 0:01:05.3]} 19. Bxa6 {[%clk 0:00:39]} 19... Rxa6
{[%clk 0:01:03.1]} 20. Qf3 {[%clk 0:00:39.4]} 20... Kg7 {[%clk 0:00:51.4]} 21.
Qf4 {[%clk 0:00:38.2]} 21... Qb4 {[%clk 0:00:37.8]} 22. Re4 {[%clk 0:00:29.8]}
22... Rxa4 {[%clk 0:00:15.2]} 23. Rxa4 {[%clk 0:00:29.2]} 23... Qxa4 {[%clk
0:00:13.7]} 24. g4 {[%clk 0:00:28.9]} 24... Qd1+ {[%clk 0:00:02.5]} 25. Kg2
{[%clk 0:00:28.6]} 25... Bg5 {[%clk 0:00:02.3]} 26. Qxd6 {[%clk 0:00:27.1]}
26... Qd3 {[%clk 0:00:01.8]} 27. Qe5+ {[%clk 0:00:27]} 27... f6 {[%clk
0:00:01.9]} 28. Qe7+ {[%clk 0:00:27]} 28... Rf7 {[%clk 0:00:02.8]} 29. Qe6
{[%clk 0:00:21.5]} 29... f5 {[%clk 0:00:01]} 30. gxf5 {[%clk 0:00:19.4]} 30...
gxf5 {[%clk 0:00:01.8]} 31. Nd6 {[%clk 0:00:19.1]} 1-0

[Event "*** Titled Tuesday Blitz"]
[Site "Chess.com"]
[Date "2021.02.09"]
[Round "3"]
[White "mikolka1985"]
[Black "Logman74"]
[Result "1-0"]
[WhiteElo "2607"]
[BlackElo "2410"]
[TimeControl "180+1"]
[EndTime "10:28:47 PST"]
[Termination "mikolka1985 won on time"]

1. d4 {[%clk 0:03:00.9]} 1... d5 {[%clk 0:02:58.9]} 2. c4 {[%clk 0:03:00.6]}
2... e6 {[%clk 0:02:59.2]} 3. Nc3 {[%clk 0:02:59.8]} 3... Nf6 {[%clk 0:02:59.6]}
4. Nf3 {[%clk 0:02:59.8]} 4... Be7 {[%clk 0:02:59.3]} 5. Bf4 {[%clk 0:02:59.7]}
5... O-O {[%clk 0:02:59.4]} 6. e3 {[%clk 0:02:59.6]} 6... b6 {[%clk 0:02:59.1]}
7. a3 {[%clk 0:02:56.9]} 7... Bb7 {[%clk 0:02:58]} 8. cxd5 {[%clk 0:02:54.4]}
8... Nxd5 {[%clk 0:02:57.2]} 9. Nxd5 {[%clk 0:02:53.1]} 9... Bxd5 {[%clk
0:02:57.2]} 10. Bd3 {[%clk 0:02:52.3]} 10... c5 {[%clk 0:02:55.4]} 11. dxc5
{[%clk 0:02:51.2]} 11... Bxf3 {[%clk 0:02:46.4]} 12. Qxf3 {[%clk 0:02:38.2]}
12... Qxd3 {[%clk 0:02:43.9]} 13. Qxa8 {[%clk 0:02:37.5]} 13... e5 {[%clk
0:02:27.6]} 14. Bg3 {[%clk 0:02:33.5]} 14... Rd8 {[%clk 0:02:16.3]} 15. Qf3
{[%clk 0:02:28.3]} 15... Qd2+ {[%clk 0:02:15.7]} 16. Kf1 {[%clk 0:02:27.7]}
16... Qxb2 {[%clk 0:01:25.8]} 17. Rd1 {[%clk 0:02:24.5]} 17... Qb5+ {[%clk
0:01:23.5]} 18. Kg1 {[%clk 0:02:22.5]} 18... Rxd1+ {[%clk 0:01:18]} 19. Qxd1
{[%clk 0:02:21.8]} 19... Qxc5 {[%clk 0:01:18.5]} 20. h4 {[%clk 0:02:19.9]} 20...
Nc6 {[%clk 0:01:16.3]} 21. Qd7 {[%clk 0:02:17.2]} 21... Bf8 {[%clk 0:01:14.1]}
22. Kh2 {[%clk 0:02:15.5]} 22... a5 {[%clk 0:01:01.9]} 23. Rb1 {[%clk
0:02:11.3]} 23... b5 {[%clk 0:00:54.3]} 24. Qd2 {[%clk 0:01:55.6]} 24... b4
{[%clk 0:00:52.8]} 25. Rc1 {[%clk 0:01:54.2]} 25... Qb5 {[%clk 0:00:48.4]} 26.
Qd7 {[%clk 0:01:51.9]} 26... Nd4 {[%clk 0:00:35.3]} 27. Qxb5 {[%clk 0:01:51.3]}
27... Nxb5 {[%clk 0:00:35.9]} 28. axb4 {[%clk 0:01:51.7]} 28... axb4 {[%clk
0:00:36]} 29. Bxe5 {[%clk 0:01:51.9]} 29... f6 {[%clk 0:00:34.8]} 30. Bb2 {[%clk
0:01:51]} 30... Kf7 {[%clk 0:00:34]} 31. Rc8 {[%clk 0:01:48.4]} 31... Ke6 {[%clk
0:00:33.4]} 32. g3 {[%clk 0:01:47.5]} 32... Bd6 {[%clk 0:00:31.2]} 33. e4 {[%clk
0:01:44.2]} 33... h5 {[%clk 0:00:27.8]} 34. f4 {[%clk 0:01:43]} 34... Na3 {[%clk
0:00:16.6]} 35. f5+ {[%clk 0:01:34.3]} 35... Kd7 {[%clk 0:00:16]} 36. Rg8 {[%clk
0:01:33.6]} 36... Nc4 {[%clk 0:00:15.9]} 37. Rxg7+ {[%clk 0:01:32.7]} 37... Kc6
{[%clk 0:00:14.3]} 38. Bxf6 {[%clk 0:01:32.4]} 38... Ne5 {[%clk 0:00:14.2]} 39.
Bxe5 {[%clk 0:01:22.1]} 39... Bxe5 {[%clk 0:00:13.8]} 40. Rg6+ {[%clk
0:01:20.5]} 40... Kb5 {[%clk 0:00:12.6]} 41. Re6 {[%clk 0:01:18.7]} 41... Bc3
{[%clk 0:00:11.2]} 42. f6 {[%clk 0:01:11.3]} 42... b3 {[%clk 0:00:08.9]} 43. f7
{[%clk 0:01:08.7]} 43... Bb4 {[%clk 0:00:09.3]} 44. Re8 {[%clk 0:00:55.8]} 44...
b2 {[%clk 0:00:06.5]} 45. Rb8+ {[%clk 0:00:55.3]} 1-0

[Event "*** Titled Tuesday Blitz"]
[Site "Chess.com"]
[Date "2021.02.09"]
[Round "3"]
[White "FrenchMonster2002"]
[Black "Artyom_ChessMate"]
[Result "1-0"]
[WhiteElo "2394"]
[BlackElo "2534"]
[TimeControl "180+1"]
[EndTime "10:28:47 PST"]
[Termination "FrenchMonster2002 won on time"]

1. e4 {[%clk 0:03:00.9]} 1... c5 {[%clk 0:02:57.4]} 2. Nc3 {[%clk 0:03:01.2]}
2... Nc6 {[%clk 0:02:55.9]} 3. Bb5 {[%clk 0:03:01.3]} 3... Nd4 {[%clk
0:02:53.8]} 4. Nf3 {[%clk 0:03:01.9]} 4... g6 {[%clk 0:02:50.9]} 5. Bc4 {[%clk
0:03:01.9]} 5... Bg7 {[%clk 0:02:50.2]} 6. Nxd4 {[%clk 0:03:02.6]} 6... cxd4
{[%clk 0:02:49.4]} 7. Qf3 {[%clk 0:03:03.4]} 7... e6 {[%clk 0:02:49.7]} 8. Nb5
{[%clk 0:03:03.8]} 8... Qb6 {[%clk 0:02:44.1]} 9. Qg3 {[%clk 0:02:50.1]} 9... e5
{[%clk 0:02:28.1]} 10. Qa3 {[%clk 0:02:27.8]} 10... Bf8 {[%clk 0:02:22.3]} 11.
Qg3 {[%clk 0:02:20.1]} 11... Bg7 {[%clk 0:02:14]} 12. Qa3 {[%clk 0:02:19.3]}
12... Bf8 {[%clk 0:02:09.3]} 13. Qb3 {[%clk 0:02:16.8]} 13... Nh6 {[%clk
0:02:05.6]} 14. d3 {[%clk 0:02:15.3]} 14... f6 {[%clk 0:01:36.5]} 15. a4 {[%clk
0:02:00.5]} 15... a6 {[%clk 0:01:15.1]} 16. a5 {[%clk 0:02:00]} 16... Qc5 {[%clk
0:01:13.5]} 17. Na3 {[%clk 0:01:55.4]} 17... Qb4+ {[%clk 0:01:11.9]} 18. Bd2
{[%clk 0:01:44.8]} 18... Qxb3 {[%clk 0:01:09.6]} 19. cxb3 {[%clk 0:01:38.7]}
19... Nf7 {[%clk 0:01:10.5]} 20. O-O-O {[%clk 0:01:31.8]} 20... Nd8 {[%clk
0:01:09.2]} 21. f4 {[%clk 0:01:28.3]} 21... Nc6 {[%clk 0:01:03.5]} 22. fxe5
{[%clk 0:01:25.7]} 22... Nxe5 {[%clk 0:01:02.2]} 23. Nc2 {[%clk 0:01:21.3]}
23... Be7 {[%clk 0:00:59.3]} 24. Nxd4 {[%clk 0:01:19.2]} 24... d5 {[%clk
0:00:49.7]} 25. exd5 {[%clk 0:01:10.2]} 25... Bd7 {[%clk 0:00:49.5]} 26. Kb1
{[%clk 0:01:08.3]} 26... Bd6 {[%clk 0:00:47.8]} 27. Nf3 {[%clk 0:01:02.5]} 27...
O-O {[%clk 0:00:42.9]} 28. Nxe5 {[%clk 0:01:01.4]} 28... fxe5 {[%clk 0:00:43.8]}
29. Rdf1 {[%clk 0:00:58.9]} 29... Bg4 {[%clk 0:00:42.6]} 30. Bh6 {[%clk
0:00:53.2]} 30... Rfe8 {[%clk 0:00:39.6]} 31. Rf6 {[%clk 0:00:51.5]} 31... Rad8
{[%clk 0:00:34.9]} 32. Rhf1 {[%clk 0:00:50.6]} 32... Bf5 {[%clk 0:00:27.2]} 33.
h3 {[%clk 0:00:38.5]} 33... Kh8 {[%clk 0:00:08.8]} 34. g4 {[%clk 0:00:38.5]}
34... Bc8 {[%clk 0:00:08.7]} 35. Rf7 {[%clk 0:00:30.8]} 35... Bb4 {[%clk
0:00:02.7]} 36. d6 {[%clk 0:00:25.9]} 1-0

[Event "*** Titled Tuesday Blitz"]
[Site "Chess.com"]
[Date "2021.02.09"]
[Round "3"]
[White "OriTaichman"]
[Black "krasavetc"]
[Result "1-0"]
[WhiteElo "2535"]
[BlackElo "2353"]
[TimeControl "180+1"]
[EndTime "10:28:49 PST"]
[Termination "OriTaichman won by checkmate"]

1. e4 {[%clk 0:03:00.9]} 1... c5 {[%clk 0:02:53.2]} 2. Nf3 {[%clk 0:02:58.7]}
2... Nc6 {[%clk 0:02:51.8]} 3. Bb5 {[%clk 0:02:52.1]} 3... g6 {[%clk 0:02:50.2]}
4. c3 {[%clk 0:02:49.2]} 4... Bg7 {[%clk 0:02:47.9]} 5. d4 {[%clk 0:02:49]} 5...
a6 {[%clk 0:02:45.4]} 6. Ba4 {[%clk 0:02:44.5]} 6... Nf6 {[%clk 0:02:38.8]} 7.
e5 {[%clk 0:02:41.3]} 7... Nd5 {[%clk 0:02:36.7]} 8. dxc5 {[%clk 0:02:40]} 8...
Nc7 {[%clk 0:02:36.3]} 9. Bxc6 {[%clk 0:02:38.6]} 9... bxc6 {[%clk 0:02:37.2]}
10. O-O {[%clk 0:02:35.6]} 10... O-O {[%clk 0:02:35.4]} 11. c4 {[%clk
0:02:19.2]} 11... Ne6 {[%clk 0:02:27.2]} 12. Be3 {[%clk 0:02:17.5]} 12... a5
{[%clk 0:02:22.8]} 13. Nc3 {[%clk 0:02:16.8]} 13... Qc7 {[%clk 0:02:14.8]} 14.
Re1 {[%clk 0:02:09.9]} 14... a4 {[%clk 0:02:08.1]} 15. Nxa4 {[%clk 0:02:04.7]}
15... Qa5 {[%clk 0:02:03]} 16. b3 {[%clk 0:01:53.9]} 16... Ra7 {[%clk
0:01:35.6]} 17. Qd2 {[%clk 0:01:47.4]} 17... Qc7 {[%clk 0:01:29.4]} 18. Bh6
{[%clk 0:01:44.3]} 18... Ba6 {[%clk 0:01:15.3]} 19. Bxg7 {[%clk 0:01:39.8]}
19... Kxg7 {[%clk 0:01:15.6]} 20. Re4 {[%clk 0:01:19.1]} 20... h5 {[%clk
0:00:47.4]} 21. Ng5 {[%clk 0:00:52.9]} 21... Rfa8 {[%clk 0:00:26.4]} 22. Nxe6+
{[%clk 0:00:50.1]} 22... dxe6 {[%clk 0:00:27]} 23. Rd1 {[%clk 0:00:46.9]} 23...
Rb8 {[%clk 0:00:23.6]} 24. Nb6 {[%clk 0:00:41.5]} 24... Bc8 {[%clk 0:00:20.4]}
25. a4 {[%clk 0:00:36.2]} 25... Rxb6 {[%clk 0:00:16.4]} 26. cxb6 {[%clk
0:00:36]} 26... Qxb6 {[%clk 0:00:17.3]} 27. Qd3 {[%clk 0:00:26.2]} 27... c5
{[%clk 0:00:15.2]} 28. g4 {[%clk 0:00:25.8]} 28... Bb7 {[%clk 0:00:14.7]} 29.
Rf4 {[%clk 0:00:24.8]} 29... g5 {[%clk 0:00:14.4]} 30. Rxf7+ {[%clk 0:00:22.6]}
30... Kxf7 {[%clk 0:00:14.2]} 31. Qh7+ {[%clk 0:00:23.1]} 31... Kf8 {[%clk
0:00:13.5]} 32. gxh5 {[%clk 0:00:19.8]} 32... Ra8 {[%clk 0:00:10.3]} 33. h6
{[%clk 0:00:19]} 33... Qc6 {[%clk 0:00:02.5]} 34. Qg7+ {[%clk 0:00:19]} 34...
Ke8 {[%clk 0:00:03.4]} 35. Qg8# {[%clk 0:00:19.5]} 1-0

[Event "*** Titled Tuesday Blitz"]
[Site "Chess.com"]
[Date "2021.02.09"]
[Round "3"]
[White "Atco84"]
[Black "superchess02"]
[Result "0-1"]
[WhiteElo "2505"]
[BlackElo "2788"]
[TimeControl "180+1"]
[EndTime "10:28:50 PST"]
[Termination "superchess02 won by checkmate"]

1. b3 {[%clk 0:02:58.2]} 1... d5 {[%clk 0:02:58.9]} 2. Bb2 {[%clk 0:02:58.5]}
2... Nc6 {[%clk 0:02:59]} 3. Nf3 {[%clk 0:02:56.5]} 3... Bg4 {[%clk 0:02:56.1]}
4. e3 {[%clk 0:02:54]} 4... a6 {[%clk 0:02:54.2]} 5. h3 {[%clk 0:02:53.2]} 5...
Bxf3 {[%clk 0:02:53.1]} 6. Qxf3 {[%clk 0:02:52.4]} 6... e5 {[%clk 0:02:53.3]} 7.
d4 {[%clk 0:02:49.7]} 7... e4 {[%clk 0:02:47.3]} 8. Qd1 {[%clk 0:02:49.2]} 8...
f5 {[%clk 0:02:44.8]} 9. Be2 {[%clk 0:02:47.9]} 9... Nf6 {[%clk 0:02:44.4]} 10.
c4 {[%clk 0:02:47.5]} 10... Bb4+ {[%clk 0:02:39.5]} 11. Bc3 {[%clk 0:02:46.9]}
11... Bd6 {[%clk 0:02:36.6]} 12. O-O {[%clk 0:02:41.9]} 12... Qd7 {[%clk
0:02:34.6]} 13. a3 {[%clk 0:02:28.6]} 13... O-O {[%clk 0:02:31.6]} 14. b4 {[%clk
0:02:27.8]} 14... dxc4 {[%clk 0:02:31.8]} 15. Bxc4+ {[%clk 0:02:25.3]} 15... Kh8
{[%clk 0:02:32.1]} 16. Nd2 {[%clk 0:02:23.6]} 16... b5 {[%clk 0:02:31.3]} 17.
Be2 {[%clk 0:02:18.3]} 17... Ne7 {[%clk 0:02:31.5]} 18. Nb3 {[%clk 0:02:16.1]}
18... Ned5 {[%clk 0:02:31.1]} 19. Bd2 {[%clk 0:02:09.6]} 19... f4 {[%clk
0:02:29.5]} 20. exf4 {[%clk 0:02:04.3]} 20... Bxf4 {[%clk 0:02:28.8]} 21. Re1
{[%clk 0:01:41.6]} 21... e3 {[%clk 0:01:49.1]} 22. fxe3 {[%clk 0:01:38.3]} 22...
Bxe3+ {[%clk 0:01:50]} 23. Bxe3 {[%clk 0:01:28.9]} 23... Nxe3 {[%clk 0:01:50.9]}
24. Qd2 {[%clk 0:01:20.8]} 24... Nfd5 {[%clk 0:01:24.2]} 25. Bd3 {[%clk
0:01:01.6]} 25... Rae8 {[%clk 0:01:18.6]} 26. Nc5 {[%clk 0:00:53.1]} 26... Qd6
{[%clk 0:01:13.5]} 27. Re2 {[%clk 0:00:43.9]} 27... Nf4 {[%clk 0:00:58.5]} 28.
Rxe3 {[%clk 0:00:36.6]} 28... Qxd4 {[%clk 0:00:57.8]} 29. Re1 {[%clk 0:00:37]}
29... Nd5 {[%clk 0:00:57.6]} 30. Nb3 {[%clk 0:00:25.1]} 30... Qb6 {[%clk
0:00:48]} 31. Nc5 {[%clk 0:00:22.2]} 31... Nxe3 {[%clk 0:00:47.6]} 32. Rxe3
{[%clk 0:00:22.5]} 32... Qf6 {[%clk 0:00:44.4]} 33. Rxe8 {[%clk 0:00:19.9]}
33... Rxe8 {[%clk 0:00:41.2]} 34. Be4 {[%clk 0:00:20.1]} 34... Rd8 {[%clk
0:00:38.9]} 35. Qe2 {[%clk 0:00:19.5]} 35... h6 {[%clk 0:00:36.9]} 36. Qg4
{[%clk 0:00:19]} 36... a5 {[%clk 0:00:24.8]} 37. h4 {[%clk 0:00:13.3]} 37...
axb4 {[%clk 0:00:23.9]} 38. axb4 {[%clk 0:00:12.8]} 38... Rf8 {[%clk 0:00:22.5]}
39. Kh1 {[%clk 0:00:12.7]} 39... Qd6 {[%clk 0:00:21.5]} 40. Qg6 {[%clk 0:00:12]}
40... Rf1# {[%clk 0:00:20.5]} 0-1

[Event "*** Titled Tuesday Blitz"]
[Site "Chess.com"]
[Date "2021.02.09"]
[Round "3"]
[White "Gerasimenyuk_Miha"]
[Black "1977Ivan"]
[Result "0-1"]
[WhiteElo "2427"]
[BlackElo "2674"]
[TimeControl "180+1"]
[EndTime "10:28:50 PST"]
[Termination "1977Ivan won by resignation"]

1. d4 {[%clk 0:02:57.3]} 1... Nf6 {[%clk 0:02:59.2]} 2. Nf3 {[%clk 0:02:57.9]}
2... g6 {[%clk 0:02:59.2]} 3. Bg5 {[%clk 0:02:58.3]} 3... Bg7 {[%clk 0:02:59.3]}
4. e3 {[%clk 0:02:59]} 4... d6 {[%clk 0:02:58.7]} 5. Nbd2 {[%clk 0:02:59.4]}
5... h6 {[%clk 0:02:57.2]} 6. Bf4 {[%clk 0:02:58.7]} 6... g5 {[%clk 0:02:56.5]}
7. Bg3 {[%clk 0:02:58.9]} 7... Nh5 {[%clk 0:02:57.1]} 8. c3 {[%clk 0:02:57.4]}
8... Nd7 {[%clk 0:02:55.5]} 9. Bc4 {[%clk 0:02:57.2]} 9... e6 {[%clk 0:02:54.8]}
10. Qc2 {[%clk 0:02:56.4]} 10... a6 {[%clk 0:02:54.3]} 11. Bxe6 {[%clk
0:02:47.4]} 11... fxe6 {[%clk 0:02:09.7]} 12. Qg6+ {[%clk 0:02:47.1]} 12... Kf8
{[%clk 0:02:08.8]} 13. Qxh5 {[%clk 0:02:47.3]} 13... Nf6 {[%clk 0:02:00.1]} 14.
Qg6 {[%clk 0:02:46]} 14... Bd7 {[%clk 0:01:59.6]} 15. O-O {[%clk 0:02:42]} 15...
Qe7 {[%clk 0:01:54.5]} 16. Qd3 {[%clk 0:02:34.7]} 16... Kg8 {[%clk 0:01:53.4]}
17. e4 {[%clk 0:02:34.7]} 17... Nh5 {[%clk 0:01:46.1]} 18. e5 {[%clk 0:02:25.5]}
18... d5 {[%clk 0:01:45.3]} 19. b3 {[%clk 0:02:16.3]} 19... Rf8 {[%clk
0:01:43.9]} 20. h3 {[%clk 0:02:10.4]} 20... Qe8 {[%clk 0:01:34.9]} 21. Nh2
{[%clk 0:02:07.5]} 21... Bb5 {[%clk 0:01:01.2]} 22. c4 {[%clk 0:02:06.3]} 22...
Bc6 {[%clk 0:01:01.6]} 23. cxd5 {[%clk 0:02:01.1]} 23... Bxd5 {[%clk 0:01:02.5]}
24. Rac1 {[%clk 0:01:58.6]} 24... Qf7 {[%clk 0:00:57.1]} 25. Ng4 {[%clk
0:01:46.2]} 25... Qf5 {[%clk 0:00:50.5]} 26. Qxf5 {[%clk 0:01:43]} 26... exf5
{[%clk 0:00:51.4]} 27. Ne3 {[%clk 0:01:38.2]} 27... Be6 {[%clk 0:00:39.7]} 28.
d5 {[%clk 0:01:31.5]} 28... Bc8 {[%clk 0:00:39.8]} 29. Bh2 {[%clk 0:01:15.2]}
29... f4 {[%clk 0:00:40]} 30. Ng4 {[%clk 0:00:57.8]} 30... Rf7 {[%clk
0:00:24.1]} 31. e6 {[%clk 0:00:56.3]} 31... Re7 {[%clk 0:00:24.3]} 32. Ne4
{[%clk 0:00:44.5]} 32... Kh7 {[%clk 0:00:23.7]} 33. Rc4 {[%clk 0:00:38.8]} 33...
Rd8 {[%clk 0:00:23.4]} 34. f3 {[%clk 0:00:20]} 34... Rxd5 {[%clk 0:00:22.4]} 35.
Rfc1 {[%clk 0:00:19.7]} 35... c6 {[%clk 0:00:21.4]} 36. Rc5 {[%clk 0:00:19.4]}
36... Bxe6 {[%clk 0:00:21.2]} 37. Rxd5 {[%clk 0:00:19.3]} 37... Bxd5 {[%clk
0:00:22.1]} 38. Ngf2 {[%clk 0:00:19.7]} 38... Bd4 {[%clk 0:00:22]} 39. g4 {[%clk
0:00:19.7]} 39... fxg3 {[%clk 0:00:21]} 0-1

[Event "*** Titled Tuesday Blitz"]
[Site "Chess.com"]
[Date "2021.02.09"]
[Round "3"]
[White "Anna_ChessMate"]
[Black "Unknown_IM"]
[Result "1-0"]
[WhiteElo "2551"]
[BlackElo "2372"]
[TimeControl "180+1"]
[EndTime "10:28:50 PST"]
[Termination "Anna_ChessMate won by resignation"]

1. e4 {[%clk 0:02:58.4]} 1... e5 {[%clk 0:02:59.3]} 2. Nf3 {[%clk 0:02:55.8]}
2... Nc6 {[%clk 0:02:58]} 3. Bb5 {[%clk 0:02:53.5]} 3... a6 {[%clk 0:02:52.1]}
4. Ba4 {[%clk 0:02:51.8]} 4... Nf6 {[%clk 0:02:49.4]} 5. O-O {[%clk 0:02:49.9]}
5... Be7 {[%clk 0:02:49.3]} 6. d4 {[%clk 0:02:49.1]} 6... exd4 {[%clk
0:02:40.7]} 7. e5 {[%clk 0:02:50]} 7... Ne4 {[%clk 0:02:41.2]} 8. Bb3 {[%clk
0:02:48.1]} 8... Nc5 {[%clk 0:02:33.8]} 9. Bd5 {[%clk 0:02:43.7]} 9... Ne6
{[%clk 0:02:31.8]} 10. Re1 {[%clk 0:02:39.9]} 10... O-O {[%clk 0:02:31]} 11.
Nbd2 {[%clk 0:02:30.9]} 11... d6 {[%clk 0:02:26]} 12. Bxc6 {[%clk 0:02:27.2]}
12... bxc6 {[%clk 0:02:25.4]} 13. exd6 {[%clk 0:02:24.9]} 13... cxd6 {[%clk
0:02:24.8]} 14. Ne4 {[%clk 0:02:15.4]} 14... c5 {[%clk 0:02:22.4]} 15. Ng3
{[%clk 0:02:15.9]} 15... Bb7 {[%clk 0:02:21.4]} 16. Nf5 {[%clk 0:02:11.6]} 16...
Bf6 {[%clk 0:02:18.7]} 17. h3 {[%clk 0:02:09.6]} 17... Re8 {[%clk 0:02:13]} 18.
Nh2 {[%clk 0:02:09]} 18... g6 {[%clk 0:01:51.7]} 19. Nh6+ {[%clk 0:02:08.7]}
19... Kf8 {[%clk 0:01:52]} 20. Qd3 {[%clk 0:01:21.7]} 20... Bg5 {[%clk
0:00:58.8]} 21. N2g4 {[%clk 0:01:12.4]} 21... Bxc1 {[%clk 0:00:55]} 22. Raxc1
{[%clk 0:01:10.8]} 22... Qg5 {[%clk 0:00:53.6]} 23. Qg3 {[%clk 0:01:05.4]} 23...
Rad8 {[%clk 0:00:28.7]} 24. Rxe6 {[%clk 0:00:48.6]} 24... Rxe6 {[%clk
0:00:24.8]} 25. f4 {[%clk 0:00:49.1]} 25... Qd5 {[%clk 0:00:20.4]} 26. Rf1
{[%clk 0:00:42.4]} 26... Re2 {[%clk 0:00:15.3]} 27. Rf3 {[%clk 0:00:28.7]} 27...
Kg7 {[%clk 0:00:12.3]} 28. f5 {[%clk 0:00:27.3]} 28... Rde8 {[%clk 0:00:10]} 29.
Qh4 {[%clk 0:00:15.7]} 29... Rxg2+ {[%clk 0:00:08.4]} 30. Kh1 {[%clk 0:00:16.3]}
30... Rg1+ {[%clk 0:00:02.6]} 31. Kxg1 {[%clk 0:00:15.9]} 31... Qxf3 {[%clk
0:00:01.2]} 32. Qf6+ {[%clk 0:00:15.2]} 1-0

[Event "*** Titled Tuesday Blitz"]
[Site "Chess.com"]
[Date "2021.02.09"]
[Round "3"]
[White "ChessAdvanceUSA"]
[Black "LilRag"]
[Result "0-1"]
[WhiteElo "2286"]
[BlackElo "2580"]
[TimeControl "180+1"]
[EndTime "10:28:51 PST"]
[Termination "LilRag won on time"]

1. Nf3 {[%clk 0:03:00.9]} 1... Nf6 {[%clk 0:02:59]} 2. d4 {[%clk 0:03:00.6]}
2... e6 {[%clk 0:02:58]} 3. Bg5 {[%clk 0:02:59.7]} 3... d5 {[%clk 0:02:55.3]} 4.
Nbd2 {[%clk 0:02:59.3]} 4... c5 {[%clk 0:02:54.3]} 5. e3 {[%clk 0:02:56.4]} 5...
Nc6 {[%clk 0:02:54]} 6. c3 {[%clk 0:02:55.1]} 6... h6 {[%clk 0:02:53.5]} 7. Bxf6
{[%clk 0:02:53.6]} 7... Qxf6 {[%clk 0:02:52.4]} 8. Bb5 {[%clk 0:02:50.3]} 8...
Bd7 {[%clk 0:02:51.9]} 9. Bxc6 {[%clk 0:02:50.5]} 9... Bxc6 {[%clk 0:02:51.7]}
10. Ne5 {[%clk 0:02:50.8]} 10... Rc8 {[%clk 0:02:51.3]} 11. Nxc6 {[%clk
0:02:49.2]} 11... Rxc6 {[%clk 0:02:51]} 12. O-O {[%clk 0:02:49.5]} 12... Bd6
{[%clk 0:02:50.5]} 13. dxc5 {[%clk 0:02:35.2]} 13... Bxc5 {[%clk 0:02:49.5]} 14.
e4 {[%clk 0:02:33.7]} 14... dxe4 {[%clk 0:02:45.7]} 15. Nxe4 {[%clk 0:02:31.6]}
15... Qe7 {[%clk 0:02:46.3]} 16. Nxc5 {[%clk 0:02:29.9]} 16... Rxc5 {[%clk
0:02:45]} 17. Qd4 {[%clk 0:02:19.9]} 17... O-O {[%clk 0:02:37.5]} 18. Rad1
{[%clk 0:02:15.8]} 18... Rfc8 {[%clk 0:02:37.7]} 19. Qd7 {[%clk 0:02:05.6]}
19... Qxd7 {[%clk 0:02:28.3]} 20. Rxd7 {[%clk 0:02:06.5]} 20... Rb5 {[%clk
0:02:28.6]} 21. Rd2 {[%clk 0:01:58.2]} 21... Rcc5 {[%clk 0:02:24.1]} 22. Rfd1
{[%clk 0:01:54.6]} 22... Kh7 {[%clk 0:02:21.4]} 23. Kf1 {[%clk 0:01:33.2]} 23...
Kg6 {[%clk 0:02:19.8]} 24. Rc1 {[%clk 0:01:26.9]} 24... Rb6 {[%clk 0:02:14.6]}
25. b3 {[%clk 0:01:12.7]} 25... a5 {[%clk 0:02:05.6]} 26. Ke2 {[%clk 0:01:09.8]}
26... Re5+ {[%clk 0:02:01]} 27. Kd1 {[%clk 0:00:48.5]} 27... Kf6 {[%clk
0:01:52.5]} 28. Kc2 {[%clk 0:00:48.6]} 28... Rc6 {[%clk 0:01:47.7]} 29. Kb2
{[%clk 0:00:41.7]} 29... b5 {[%clk 0:01:40.2]} 30. Rcc2 {[%clk 0:00:39.4]} 30...
Re4 {[%clk 0:01:27.6]} 31. Re2 {[%clk 0:00:39.2]} 31... Rg4 {[%clk 0:01:22.6]}
32. g3 {[%clk 0:00:38.7]} 32... Rg5 {[%clk 0:01:22.8]} 33. f4 {[%clk 0:00:38.5]}
33... Rd5 {[%clk 0:01:21.4]} 34. Red2 {[%clk 0:00:36.6]} 34... Rdc5 {[%clk
0:01:15.3]} 35. Rd3 {[%clk 0:00:36.7]} 35... g6 {[%clk 0:01:07.3]} 36. Re2
{[%clk 0:00:36.8]} 36... Rc7 {[%clk 0:01:03.1]} 37. Re4 {[%clk 0:00:37]} 37...
Kf5 {[%clk 0:00:56.8]} 38. Red4 {[%clk 0:00:36.5]} 38... Kf6 {[%clk 0:00:46.8]}
39. Rd7 {[%clk 0:00:36.7]} 39... Kf5 {[%clk 0:00:36.2]} 40. Rxc7 {[%clk
0:00:36.1]} 40... Rxc7 {[%clk 0:00:37.1]} 41. a4 {[%clk 0:00:32.6]} 41... bxa4
{[%clk 0:00:36]} 42. bxa4 {[%clk 0:00:33.5]} 42... Kg4 {[%clk 0:00:35.7]} 43.
Kb3 {[%clk 0:00:31.6]} 43... Kf5 {[%clk 0:00:31.3]} 0-1